[Event "9th Amsterdam Science Park A 2019"]
[Site "Amsterdam"]
[Date "2019.07.06"]
[Round "1.9"]
[White "Vereggen, Lars"]
[Black "Ballon, Guenther"]
[Result "0-1"]
[ECO "E10"]
[WhiteElo "2370"]
[BlackElo "2089"]
[Annotator "NA"]
[PlyCount "88"]
[EventDate "2019.07.06"]
[EventType "swiss"]
[EventCountry "NED"]
[SourceTitle "playchess.com"]
[Source "ChessBase"]
[SourceQuality "1"]
[TimeControl "40/5400+30:1800+30"]

1. d4 {[%emt 0:00:11]} Nf6 {[%emt 0:00:00]} 2. c4 {[%emt 0:00:08]} e6 {[%emt 0:00:00]} 3. Nf3 {[%emt 0:00:24]} d5 {[%emt 0:00:16]} 4. g3 {[%emt 0:00:11]} Bb4+ {[%emt 0:01:17]} 5. Nc3 {[%emt 0:04:20]} O-O {[%emt 0:02:55]} 6. Qb3 {[%emt 0:00:50]} c5 {[%emt 0:02:26]} 7. Bg5 {[%emt 0:07:28]} dxc4 {[%emt 0:06:13]} 8. Qxc4 {[%emt 0:00:22]} Qd5 {[%emt 0:04:33]} 9. Qxd5 {[%emt 0:15:12]} Nxd5 {[%emt 0:00:14]} 10. Bd2 {[%emt 0:00:07]} cxd4 {[%emt 0:08:57]} 11. Nxd5 {[%emt 0:05:03]} Bxd2+ {[%emt 0:00:09]} 12. Kxd2 {[%emt 0:00:05]} exd5 {[%emt 0:00:07]} 13. Nxd4 {[%emt 0:00:05]} Nc6 {[%emt 0:00:44]} 14. Nxc6 {[%emt 0:01:12]} bxc6 {[%emt 0:00:08]} 15. Rc1 {[%emt 0:00:02]} Bd7 {[%emt 0:03:29]} 16. Rc5 {[%emt 0:10:07]} Rfb8 {[%emt 0:00:21]} 17. Kc1 {[%emt 0:02:24]} a5 {[%emt 0:01:20]} 18. e3 {[%emt 0:00:48]} Rb6 {[%emt 0:03:12]} 19. Bd3 {[%emt 0:06:27]} Rab8 {[%emt 0:10:31]} 20. Rc2 {[%emt 0:03:22]} g6 {[%emt 0:06:44]} 21. Rd1 {[%emt 0:00:38]} f5 {[%emt 0:02:42]} 22. Rdd2 {[%emt 0:00:50]} Kf7 {[%emt 0:02:36]} 23. Be2 {[%emt 0:09:09]} Ke7 {[%emt 0:01:07]} 24. Rc3 {[%emt 0:02:33]} Kd6 {[%emt 0:01:38]} 25. Rdc2 {[%emt 0:06:47]} Rb4 {[%emt 0:02:48]} 26. h4 {[%emt 0:08:22]} h5 {[%emt 0:01:45]} 27. Bd1 {[%emt 0:06:49]} R4b6 {[%emt 0:05:56]} 28. Rd2 {[%emt 0:02:25]} R8b7 {[%emt 0:02:23]} 29. f3 {[%emt 0:00:57]} Rb8 {[%emt 0:04:24]} 30. Ra3 {[%emt 0:02:29]} Rb5 {[%emt 0:02:05]} 31. Be2 {[%emt 0:01:30]} Rc5+ {[%emt 0:00:37]} 32. Kb1 {[%emt 0:01:21]} Kc7 {[%emt 0:01:44]} 33. Rd4 {[%emt 0:01:07]} Re8 {[%emt 0:00:46]} 34. Rd2 {[%emt 0:01:05]} f4 {[%emt 0:06:16]} 35. g4 {[%emt 0:01:53]} hxg4 {[%emt 0:03:36]} 36. fxg4 {[%emt 0:00:14]} fxe3 {[%emt 0:00:32]} 37. Rd4 {[%emt 0:00:54]} Rh8 {[%emt 0:03:00]} 38. Rxe3 {[%emt 0:00:31]} Rxh4 {[%emt 0:00:08]} 39. a3 {[%emt 0:00:33]} Rh1+ {[%emt 0:03:09]} 40. Ka2 {[%emt 0:00:16]} Rcc1 {[%emt 0:01:45]} 41. Bd3 {[%emt 0:07:33]} c5 {[%emt 0:18:45]} 42. Rxd5 {[%emt 0:00:27]} a4 {[%emt 0:00:05]} 43. Rxd7+ {[%emt 0:00:09]} Kxd7 {[%emt 0:00:13]} 44. Bb5+ {[%emt 0:00:08]} Kd6 {[%emt 0:00:31]} 0-1

[Event "9th Amsterdam Science Park A 2019"]
[Site "Amsterdam"]
[Date "2019.07.06"]
[Round "1.10"]
[White "Van Veelen, Jouke"]
[Black "Van der Lende, Ilias"]
[Result "0-1"]
[ECO "A09"]
[WhiteElo "2082"]
[BlackElo "2350"]
[Annotator "NA"]
[PlyCount "120"]
[EventDate "2019.07.06"]
[EventType "swiss"]
[EventCountry "NED"]
[SourceTitle "playchess.com"]
[Source "ChessBase"]
[SourceQuality "1"]
[TimeControl "40/5400+30:1800+30"]

1. Nf3 {[%emt 0:00:00]} d5 {[%emt 0:00:00]} 2. c4 {[%emt 0:00:10]} d4 {[%emt 0:00:26]} 3. g3 {[%emt 0:00:28]} Nc6 {[%emt 0:00:23]} 4. Bg2 {[%emt 0:01:05]} e5 {[%emt 0:00:07]} 5. d3 {[%emt 0:00:27]} Bb4+ {[%emt 0:02:48]} 6. Nbd2 {[%emt 0:01:31]} a5 {[%emt 0:00:10]} 7. a3 {[%emt 0:03:08]} Be7 {[%emt 0:03:13]} 8. b3 {[%emt 0:00:43]} f5 {[%emt 0:02:10]} 9. Qc2 {[%emt 0:03:48]} Nf6 {[%emt 0:02:27]} 10. Bb2 {[%emt 0:02:58]} Bc5 {[%emt 0:03:25]} 11. O-O {[%emt 0:02:39]} O-O {[%emt 0:02:42]} 12. Rfe1 {[%emt 0:09:07]} Re8 {[%emt 0:03:48]} 13. e3 {[%emt 0:23:14]} dxe3 {[%emt 0:00:45]} 14. fxe3 {[%emt 0:00:07]} Ng4 {[%emt 0:02:05]} 15. Nf1 {[%emt 0:00:43]} f4 {[%emt 0:11:33]} 16. gxf4 {[%emt 0:04:15]} exf4 {[%emt 0:16:59]} 17. d4 {[%emt 0:03:15]} Ba7 {[%emt 0:01:38]} 18. Qc3 {[%emt 0:01:16]} fxe3 {[%emt 0:03:52]} 19. Nxe3 {[%emt 0:00:24]} Nxe3 {[%emt 0:09:05]} 20. Rxe3 {[%emt 0:01:52]} Bg4 {[%emt 0:00:11]} 21. c5 {[%emt 0:01:50]} Qf6 {[%emt 0:01:12]} 22. Rf1 {[%emt 0:03:16]} Qh6 {[%emt 0:14:40]} 23. Ne5 {[%emt 0:03:09]} Nxe5 {[%emt 0:00:48]} 24. dxe5 {[%emt 0:00:37]} Be6 {[%emt 0:01:00]} 25. b4 {[%emt 0:01:32]} c6 {[%emt 0:01:13]} 26. Kh1 {[%emt 0:01:50]} axb4 {[%emt 0:01:04]} 27. axb4 {[%emt 0:00:44]} Bb8 {[%emt 0:00:06]} 28. Ra1 {[%emt 0:08:51]} Rxa1+ {[%emt 0:00:19]} 29. Bxa1 {[%emt 0:00:05]} Rd8 {[%emt 0:01:18]} 30. Bb2 {[%emt 0:07:20]} Rd1+ {[%emt 0:04:15]} 31. Re1 {[%emt 0:00:11]} Qd2 {[%emt 0:00:44]} 32. Qxd2 {[%emt 0:01:17]} Rxd2 {[%emt 0:00:04]} 33. Bc3 {[%emt 0:02:30]} Rc2 {[%emt 0:00:29]} 34. Re3 {[%emt 0:01:13]} Rc1+ {[%emt 0:01:37]} 35. Be1 {[%emt 0:01:52]} Bc7 {[%emt 0:00:06]} 36. Be4 {[%emt 0:02:10]} b6 {[%emt 0:06:38]} 37. Kg2 {[%emt 0:07:33]} bxc5 {[%emt 0:00:03]} 38. Bxc6 {[%emt 0:01:00]} cxb4 {[%emt 0:00:30]} 39. Be4 {[%emt 0:00:10]} b3 {[%emt 0:01:28]} 40. Bc3 {[%emt 0:00:42]} Bb6 {[%emt 0:01:08]} 41. Rd3 {[%emt 0:07:12]} Bc4 {[%emt 0:10:28]} 42. Rd6 {[%emt 0:00:43]} Bc7 {[%emt 0:02:47]} 43. Rc6 {[%emt 0:00:45]} Rxc3 {[%emt 0:00:10]} 44. Rxc4 {[%emt 0:00:15]} Rxc4 {[%emt 0:00:06]} 45. Bd5+ {[%emt 0:00:10]} Kh8 {[%emt 0:00:05]} 46. Bxc4 {[%emt 0:00:13]} b2 {[%emt 0:00:03]} 47. Bd3 {[%emt 0:00:41]} Bxe5 {[%emt 0:00:05]} 48. h3 {[%emt 0:00:50]} g5 {[%emt 0:03:03]} 49. Kf3 {[%emt 0:00:29]} h5 {[%emt 0:00:12]} 50. Bc2 {[%emt 0:04:45]} Kg7 {[%emt 0:00:05]} 51. Bb1 {[%emt 0:01:35]} Kf6 {[%emt 0:00:05]} 52. Ba2 {[%emt 0:00:41]} Bd6 {[%emt 0:00:07]} 53. Bb1 {[%emt 0:00:35]} Ke5 {[%emt 0:00:04]} 54. Bg6 {[%emt 0:00:20]} Kd4 {[%emt 0:00:05]} 55. Ke2 {[%emt 0:00:30]} g4 {[%emt 0:00:38]} 56. hxg4 {[%emt 0:00:40]} hxg4 {[%emt 0:00:03]} 57. Bf5 {[%emt 0:00:49]} Ke5 {[%emt 0:00:52]} 58. Bh7 {[%emt 0:00:35]} Kf4 {[%emt 0:00:11]} 59. Kf2 {[%emt 0:00:46]} g3+ {[%emt 0:00:06]} 60. Kg2 {[%emt 0:01:01]} Ke5 0-1

[Event "9th Amsterdam Science Park A 2019"]
[Site "Amsterdam"]
[Date "2019.07.06"]
[Round "1.11"]
[White "De Ruiter, Danny"]
[Black "Keuning, Selwin"]
[Result "1/2-1/2"]
[ECO "E15"]
[WhiteElo "2310"]
[BlackElo "2078"]
[Annotator "NA"]
[PlyCount "87"]
[EventDate "2019.07.06"]
[EventType "swiss"]
[EventCountry "NED"]
[SourceTitle "playchess.com"]
[Source "ChessBase"]
[SourceQuality "1"]
[TimeControl "40/5400+30:1800+30"]

1. d4 {[%emt 0:00:00]} Nf6 {[%emt 0:00:00]} 2. c4 {[%emt 0:00:00]} e6 {[%emt 0:00:00]} 3. Nf3 {[%emt 0:00:00]} b6 {[%emt 0:00:00]} 4. g3 {[%emt 0:00:20]} Ba6 {[%emt 0:00:00]} 5. b3 {[%emt 0:00:42]} Bb4+ {[%emt 0:00:08]} 6. Bd2 {[%emt 0:00:10]} Be7 {[%emt 0:00:17]} 7. Bg2 {[%emt 0:02:26]} c6 {[%emt 0:00:54]} 8. Qc2 {[%emt 0:03:50]} d5 {[%emt 0:01:55]} 9. O-O {[%emt 0:01:46]} O-O {[%emt 0:00:23]} 10. a4 {[%emt 0:03:57]} Nbd7 {[%emt 0:05:31]} 11. Re1 {[%emt 0:03:33]} c5 {[%emt 0:06:47]} 12. Na3 {[%emt 0:03:25]} Bb7 {[%emt 0:07:05]} 13. a5 {[%emt 0:05:49]} Ne4 {[%emt 0:10:40]} 14. Be3 {[%emt 0:03:29]} f5 {[%emt 0:07:04]} 15. axb6 {[%emt 0:02:40]} axb6 {[%emt 0:06:02]} 16. Nb5 {[%emt 0:04:07]} Qc8 {[%emt 0:05:37]} 17. Rxa8 {[%emt 0:05:57]} Bxa8 {[%emt 0:00:33]} 18. Ra1 {[%emt 0:02:10]} dxc4 {[%emt 0:07:21]} 19. bxc4 {[%emt 0:01:51]} cxd4 {[%emt 0:06:53]} 20. Nfxd4 {[%emt 0:04:21]} Ndc5 {[%emt 0:02:28]} 21. Ra7 {[%emt 0:06:20]} Bb7 {[%emt 0:04:08]} 22. Ra1 {[%emt 0:15:53]} Bf6 {[%emt 0:07:47]} 23. Rd1 {[%emt 0:04:23]} Rd8 {[%emt 0:03:38]} 24. Nf3 {[%emt 0:04:03]} e5 {[%emt 0:03:32]} 25. Ne1 {[%emt 0:00:49]} Rxd1 {[%emt 0:04:16]} 26. Qxd1 {[%emt 0:00:01]} Qe6 {[%emt 0:00:16]} 27. Qc2 {[%emt 0:04:11]} Qd7 {[%emt 0:01:07]} 28. Nd3 {[%emt 0:01:26]} Bc6 {[%emt 0:02:00]} 29. Nxc5 {[%emt 0:02:14]} bxc5 {[%emt 0:00:11]} 30. Qd3 {[%emt 0:08:12]} Be7 {[%emt 0:01:46]} 31. Qxd7 {[%emt 0:03:48]} Bxd7 {[%emt 0:00:03]} 32. Nc7 {[%emt 0:00:06]} Ba4 {[%emt 0:04:06]} 33. Bxe4 {[%emt 0:02:47]} fxe4 {[%emt 0:00:03]} 34. Ne6 {[%emt 0:00:11]} Bb3 {[%emt 0:00:51]} 35. Bxc5 {[%emt 0:00:01]} Kf7 {[%emt 0:01:34]} 36. Bxe7 {[%emt 0:00:07]} Kxe6 {[%emt 0:00:03]} 37. Bf8 {[%emt 0:00:31]} Bxc4 {[%emt 0:00:05]} 38. Kf1 {[%emt 0:00:20]} g6 {[%emt 0:00:07]} 39. Ke1 {[%emt 0:00:09]} Kd5 {[%emt 0:01:13]} 40. Kd2 {[%emt 0:00:49]} Ba6 {[%emt 0:00:50]} 41. Ke3 {[%emt 0:30:48]} Bb7 {[%emt 0:30:55]} 42. Kd2 {[%emt 0:01:27]} Ba6 {[%emt 0:01:31]} 43. Ke3 {[%emt 0:00:25]} Bb7 {[%emt 0:00:05]} 44. Kd2 {[%emt 0:00:05]} 1/2-1/2

[Event "9th Amsterdam Science Park A 2019"]
[Site "Amsterdam"]
[Date "2019.07.06"]
[Round "1.12"]
[White "Theulings, Paul-Peter"]
[Black "Belous, Mikhail"]
[Result "0-1"]
[ECO "E62"]
[WhiteElo "2070"]
[BlackElo "2289"]
[Annotator "NA"]
[PlyCount "144"]
[EventDate "2019.07.06"]
[EventType "swiss"]
[EventCountry "NED"]
[SourceTitle "playchess.com"]
[Source "ChessBase"]
[SourceQuality "1"]
[TimeControl "40/5400+30:1800+30"]

1. Nf3 {[%emt 0:00:00]} Nf6 {[%emt 0:00:00]} 2. c4 {[%emt 0:00:00]} g6 {[%emt 0:00:00]} 3. g3 {[%emt 0:00:00]} Bg7 {[%emt 0:00:00]} 4. Bg2 {[%emt 0:00:00]} O-O {[%emt 0:00:03]} 5. d4 {[%emt 0:00:09]} d6 {[%emt 0:00:09]} 6. Nc3 {[%emt 0:00:10]} Nc6 {[%emt 0:00:19]} 7. O-O {[%emt 0:00:12]} e5 {[%emt 0:00:08]} 8. dxe5 dxe5 {[%emt 0:00:13]} 9. Bg5 {[%emt 0:05:29]} Be6 {[%emt 0:05:14]} 10. Qa4 {[%emt 0:00:18]} Qc8 {[%emt 0:04:27]} 11. Rfd1 {[%emt 0:01:59]} Nd7 {[%emt 0:03:27]} 12. Nd5 {[%emt 0:07:16]} e4 {[%emt 0:04:01]} 13. Nd2 {[%emt 0:02:55]} f5 {[%emt 0:01:55]} 14. Qxc6 {[%emt 0:04:53]} bxc6 {[%emt 0:00:15]} 15. Ne7+ {[%emt 0:00:06]} Kf7 {[%emt 0:01:03]} 16. Nxc8 {[%emt 0:00:07]} Rfxc8 {[%emt 0:16:27]} 17. Rab1 Ne5 {[%emt 0:11:13]} 18. b3 {[%emt 0:04:33]} a5 {[%emt 0:00:38]} 19. f3 a4 20. fxe4 {[%emt 0:03:59]} axb3 {[%emt 0:05:45]} 21. axb3 {[%emt 0:00:08]} Ra2 {[%emt 0:01:18]} 22. exf5 {[%emt 0:10:18]} Bxf5 {[%emt 0:00:26]} 23. e4 {[%emt 0:00:37]} Bg4 {[%emt 0:07:14]} 24. Rf1+ {[%emt 0:01:00]} Kg8 {[%emt 0:00:07]} 25. Nf3 Nxf3+ {[%emt 0:09:25]} 26. Bxf3 {[%emt 0:30:29]} Bd4+ {[%emt 0:01:05]} 27. Kh1 {[%emt 0:00:08]} Bh3 {[%emt 0:00:16]} 28. Rfd1 {[%emt 0:00:24]} c5 {[%emt 0:00:27]} 29. e5 {[%emt 0:03:56]} Bxe5 {[%emt 0:03:04]} 30. Rd2 {[%emt 0:05:06]} Rxd2 {[%emt 0:04:04]} 31. Bxd2 {[%emt 0:00:05]} Bd4 {[%emt 0:01:32]} 32. Bg2 {[%emt 0:01:21]} Be6 {[%emt 0:07:00]} 33. Re1 {[%emt 0:00:48]} Bf7 {[%emt 0:00:11]} 34. Bh6 {[%emt 0:06:31]} Rb8 {[%emt 0:02:21]} 35. Rf1 {[%emt 0:01:04]} Rxb3 {[%emt 0:02:41]} 36. Bd5 {[%emt 0:06:56]} Bxd5+ {[%emt 0:00:12]} 37. cxd5 {[%emt 0:00:08]} Bg7 {[%emt 0:03:47]} 38. Bf4 {[%emt 0:01:21]} Rd3 {[%emt 0:00:32]} 39. Bxc7 {[%emt 0:00:52]} Rxd5 {[%emt 0:00:09]} 40. Bf4 {[%emt 0:04:33]} c4 {[%emt 0:00:56]} 41. Kg2 {[%emt 0:30:23]} c3 {[%emt 0:32:20]} 42. Kf3 {[%emt 0:00:58]} Kf7 {[%emt 0:05:18]} 43. Ke4 {[%emt 0:00:00]} Ke6 {[%emt 0:00:00]} 44. Ra1 {[%emt 0:00:00]} Rd4+ {[%emt 0:00:00]} 45. Ke3 {[%emt 0:00:00]} Rd7 {[%emt 0:00:00]} 46. Ra6+ {[%emt 0:00:00]} Kd5 {[%emt 0:00:00]} 47. Kd3 {[%emt 0:00:00]} Kc5+ {[%emt 0:00:00]} 48. Kc2 {[%emt 0:00:00]} Rb7 {[%emt 0:00:00]} 49. Bc1 {[%emt 0:00:00]} Kb4 {[%emt 0:00:00]} 50. Ra8 {[%emt 0:00:00]} Rf7 {[%emt 0:00:00]} 51. Rb8+ {[%emt 0:00:00]} Kc4 {[%emt 0:00:00]} 52. Bf4 {[%emt 0:00:00]} Kd4 {[%emt 0:00:00]} 53. Rb4+ {[%emt 0:00:00]} Kd5 {[%emt 0:00:00]} 54. Kd3 {[%emt 0:00:00]} Ra7 {[%emt 0:00:00]} 55. Rb8 {[%emt 0:00:00]} Bf6 {[%emt 0:00:00]} 56. Rb6 {[%emt 0:00:00]} Bg7 {[%emt 0:00:00]} 57. Rd6+ {[%emt 0:00:00]} Kc5 {[%emt 0:00:00]} 58. Rd8 {[%emt 0:00:00]} Rb7 {[%emt 0:00:00]} 59. h4 {[%emt 0:00:00]} Kb4 {[%emt 0:00:00]} 60. Kc2 {[%emt 0:00:00]} Kc4 {[%emt 0:00:00]} 61. Rc8+ {[%emt 0:05:02]} Kd5 {[%emt 0:00:00]} 62. Kd3 {[%emt 0:00:19]} Rd7 {[%emt 0:01:04]} 63. Ra8 {[%emt 0:02:00]} Ke6+ {[%emt 0:00:42]} 64. Ke4 {[%emt 0:00:27]} Rd4+ {[%emt 0:00:22]} 65. Ke3 {[%emt 0:00:07]} Rb4 {[%emt 0:01:59]} 66. Ra6+ {[%emt 0:01:42]} Kf5 {[%emt 0:00:47]} 67. Kf3 {[%emt 0:00:49]} h5 {[%emt 0:02:46]} 68. Ra5+ {[%emt 0:00:37]} Ke6 {[%emt 0:00:08]} 69. Ra6+ {[%emt 0:00:07]} Kd5 {[%emt 0:00:30]} 70. Be3 {[%emt 0:01:55]} c2 {[%emt 0:00:59]} 71. Rxg6 {[%emt 0:01:27]} Rb3 {[%emt 0:00:35]} 72. Rg5+ {[%emt 0:00:14]} Be5 {[%emt 0:00:18]} 0-1

[Event "9th Amsterdam Science Park A 2019"]
[Site "Amsterdam"]
[Date "2019.07.07"]
[Round "2.1"]
[White "Wunnink, Michael"]
[Black "Meshkovs, Nikita"]
[Result "0-1"]
[ECO "A46"]
[WhiteElo "2214"]
[BlackElo "2550"]
[Annotator "ChessBase"]
[PlyCount "78"]
[EventDate "2019.07.06"]
[EventType "swiss"]
[EventCountry "NED"]
[SourceTitle "playchess.com"]
[Source "ChessBase"]
[SourceQuality "1"]
[TimeControl "40/5400+30:1800+30"]

1. d4 {[%emt 0:00:00]} Nf6 {[%emt 0:00:00]} 2. Nf3 {[%emt 0:00:00]} e6 {[%emt 0:00:21]} 3. g3 {[%emt 0:00:15]} b5 {[%emt 0:00:56]} 4. Bg2 {[%emt 0:00:12]} Bb7 {[%emt 0:00:18]} 5. O-O {[%emt 0:00:11]} d5 {[%emt 0:02:19]} 6. Qd3 {[%emt 0:10:04]} a6 {[%emt 0:00:53]} 7. a4 {[%emt 0:00:12]} b4 {[%emt 0:01:31]} 8. c4 {[%emt 0:01:17]} Nbd7 {[%emt 0:16:25]} 9. cxd5 {[%emt 0:08:36]} Bxd5 {[%emt 0:01:07]} 10. Nbd2 {[%emt 0:07:43]} Be7 {[%emt 0:02:19]} 11. e4 {[%emt 0:07:31]} Bb7 {[%emt 0:00:33]} 12. Re1 {[%emt 0:03:49]} O-O {[%emt 0:02:42]} 13. e5 {[%emt 0:15:37]} Nd5 {[%emt 0:00:34]} 14. Ne4 {[%emt 0:02:00]} h6 {[%emt 0:00:29]} 15. Nfd2 {[%emt 0:05:13]} c5 {[%emt 0:12:44]} 16. Nc4 {[%emt 0:04:58]} a5 {[%emt 0:01:55]} 17. Ned6 {[%emt 0:04:10]} Ba6 {[%emt 0:01:35]} 18. Qd1 {[%emt 0:03:20]} cxd4 {[%emt 0:09:13]} 19. Qxd4 {[%emt 0:03:35]} Bxc4 {[%emt 0:00:19]} 20. Nxc4 {[%emt 0:00:11]} Nc5 {[%emt 0:00:02]} 21. Qg4 {[%emt 0:00:50]} Bg5 {[%emt 0:05:55]} 22. f4 {[%emt 0:04:18]} Be7 {[%emt 0:00:19]} 23. f5 {[%emt 0:03:51]} exf5 {[%emt 0:02:28]} 24. Qxf5 {[%emt 0:00:48]} Ra7 {[%emt 0:12:41]} 25. Rd1 {[%emt 0:02:50]} Rd7 {[%emt 0:00:23]} 26. Nd6 {[%emt 0:01:09]} Nc7 {[%emt 0:02:08]} 27. Bc6 {[%emt 0:01:19]} N7e6 {[%emt 0:05:24]} 28. Bxd7 {[%emt 0:00:23]} Qxd7 {[%emt 0:00:02]} 29. Be3 {[%emt 0:00:32]} Qc6 {[%emt 0:00:39]} 30. Qg4 {[%emt 0:00:43]} Bg5 {[%emt 0:02:37]} 31. Bxg5 {[%emt 0:01:13]} Nxg5 {[%emt 0:00:02]} 32. Rf1 {[%emt 0:00:38]} Nd3 {[%emt 0:01:03]} 33. Nf5 {[%emt 0:02:10]} Re8 {[%emt 0:01:04]} 34. Nd4 {[%emt 0:03:23]} Qb6 {[%emt 0:01:56]} 35. Rad1 {[%emt 0:03:04]} Nxe5 {[%emt 0:01:10]} 36. Qf5 {[%emt 0:00:37]} g6 {[%emt 0:00:21]} 37. Qf6 {[%emt 0:01:06]} Re6 {[%emt 0:00:11]} 38. Qd8+ {[%emt 0:00:39]} Qxd8 {[%emt 0:00:07]} 39. Nxe6 {[%emt 0:00:03]} Qb6+ {[%emt 0:00:07]} 0-1

[Event "9th Amsterdam Science Park A 2019"]
[Site "Amsterdam"]
[Date "2019.07.07"]
[Round "2.2"]
[White "Gleizerov, Evgeny"]
[Black "Vos, Tjark"]
[Result "1-0"]
[ECO "E06"]
[WhiteElo "2498"]
[BlackElo "2210"]
[Annotator "ChessBase"]
[PlyCount "57"]
[EventDate "2019.07.06"]
[EventType "swiss"]
[EventCountry "NED"]
[SourceTitle "playchess.com"]
[Source "ChessBase"]
[SourceQuality "1"]
[TimeControl "40/5400+30:1800+30"]

1. d4 {[%emt 0:03:03]} Nf6 {[%emt 0:00:00]} 2. c4 {[%emt 0:00:04]} e6 {[%emt 0:00:00]} 3. g3 {[%emt 0:00:04]} d5 {[%emt 0:00:00]} 4. Nf3 {[%emt 0:00:11]} Be7 {[%emt 0:00:00]} 5. Bg2 {[%emt 0:00:07]} O-O {[%emt 0:00:00]} 6. O-O {[%emt 0:00:28]} dxc4 {[%emt 0:00:00]} 7. Qc2 {[%emt 0:00:05]} a6 {[%emt 0:00:07]} 8. a4 {[%emt 0:00:04]} Bd7 {[%emt 0:00:08]} 9. Rd1 {[%emt 0:00:19]} Bc6 {[%emt 0:00:33]} 10. Nc3 {[%emt 0:07:45]} a5 {[%emt 0:03:27]} 11. e4 {[%emt 0:01:01]} Na6 {[%emt 0:05:02]} 12. Ne5 {[%emt 0:00:34]} Nb4 {[%emt 0:09:57]} 13. Qe2 {[%emt 0:00:22]} Ra6 {[%emt 0:03:06]} 14. Nxc4 {[%emt 0:02:37]} b6 {[%emt 0:08:14]} 15. d5 {[%emt 0:05:08]} exd5 {[%emt 0:04:56]} 16. e5 {[%emt 0:00:41]} Nd7 {[%emt 0:18:06]} 17. Ne3 {[%emt 0:23:46]} Ra7 {[%emt 0:11:46]} 18. Nexd5 {[%emt 0:10:46]} Nxd5 {[%emt 0:03:51]} 19. Nxd5 {[%emt 0:00:40]} Bxd5 {[%emt 0:08:08]} 20. Bxd5 {[%emt 0:00:08]} c5 {[%emt 0:00:22]} 21. e6 {[%emt 0:02:59]} Nf6 {[%emt 0:00:40]} 22. exf7+ {[%emt 0:01:52]} Kh8 {[%emt 0:00:07]} 23. Be6 {[%emt 0:00:07]} Qa8 {[%emt 0:00:57]} 24. Bf4 {[%emt 0:00:23]} Qc6 {[%emt 0:00:42]} 25. Bc4 {[%emt 0:02:34]} Qc8 {[%emt 0:06:39]} 26. Re1 {[%emt 0:03:54]} Qf5 {[%emt 0:00:46]} 27. Rad1 {[%emt 0:01:49]} h5 {[%emt 0:02:02]} 28. Be6 {[%emt 0:02:44]} Qg6 {[%emt 0:00:16]} 29. Qb5 {[%emt 0:01:48]} 1-0

[Event "9th Amsterdam Science Park A 2019"]
[Site "Amsterdam"]
[Date "2019.07.07"]
[Round "2.3"]
[White "Dimitrijeski, Kristian"]
[Black "Ten Hertog, Hugo"]
[Result "1/2-1/2"]
[ECO "E92"]
[WhiteElo "2186"]
[BlackElo "2484"]
[Annotator "ChessBase"]
[PlyCount "70"]
[EventDate "2019.07.06"]
[EventType "swiss"]
[EventCountry "NED"]
[SourceTitle "playchess.com"]
[Source "ChessBase"]
[SourceQuality "1"]
[TimeControl "40/5400+30:1800+30"]

1. d4 {[%emt 0:00:00]} g6 {[%emt 0:00:00]} 2. c4 {[%emt 0:00:00]} Bg7 {[%emt 0:00:00]} 3. Nc3 {[%emt 0:00:00]} d6 {[%emt 0:00:00]} 4. e4 {[%emt 0:00:03]} Nf6 {[%emt 0:00:24]} 5. Nf3 {[%emt 0:00:23]} O-O {[%emt 0:00:07]} 6. Be2 {[%emt 0:00:14]} e5 {[%emt 0:00:33]} 7. dxe5 {[%emt 0:00:19]} dxe5 {[%emt 0:00:05]} 8. Qxd8 {[%emt 0:00:07]} Rxd8 {[%emt 0:00:02]} 9. Bg5 {[%emt 0:00:13]} c6 {[%emt 0:15:30]} 10. Nxe5 {[%emt 0:00:25]} Re8 {[%emt 0:00:05]} 11. O-O-O {[%emt 0:00:17]} Na6 {[%emt 0:00:24]} 12. Nf3 {[%emt 0:00:10]} h6 {[%emt 0:08:27]} 13. Bxf6 {[%emt 0:12:13]} Bxf6 {[%emt 0:00:24]} 14. e5 {[%emt 0:00:05]} Bg7 {[%emt 0:27:17]} 15. Rhe1 {[%emt 0:19:30]} Bg4 {[%emt 0:03:44]} 16. h3 {[%emt 0:10:00]} Bxf3 {[%emt 0:01:51]} 17. Bxf3 {[%emt 0:00:06]} Bxe5 {[%emt 0:01:33]} 18. Kc2 {[%emt 0:03:17]} Re7 {[%emt 0:13:17]} 19. a3 {[%emt 0:04:07]} Rc8 {[%emt 0:11:20]} 20. b4 {[%emt 0:06:54]} Kf8 {[%emt 0:00:17]} 21. Re2 {[%emt 0:04:22]} Nc7 {[%emt 0:04:42]} 22. Na4 {[%emt 0:08:43]} b6 {[%emt 0:00:56]} 23. Nc3 {[%emt 0:08:01]} Bxc3 {[%emt 0:01:36]} 24. Rxe7 {[%emt 0:01:06]} Kxe7 {[%emt 0:00:09]} 25. Kxc3 {[%emt 0:00:04]} Ne6 {[%emt 0:00:04]} 26. Re1 {[%emt 0:03:48]} f5 {[%emt 0:03:23]} 27. b5 {[%emt 0:02:55]} Kd6 {[%emt 0:04:46]} 28. Bxc6 {[%emt 0:00:11]} Nc5 {[%emt 0:00:37]} 29. f3 {[%emt 0:01:47]} Rf8 {[%emt 0:02:06]} 30. Bd5 {[%emt 0:01:39]} f4 {[%emt 0:00:47]} 31. Be4 {[%emt 0:01:22]} g5 {[%emt 0:00:32]} 32. Bd5 {[%emt 0:01:59]} Rc8 {[%emt 0:00:30]} 33. Re2 {[%emt 0:02:11]} Rd8 {[%emt 0:00:20]} 34. Re1 {[%emt 0:00:25]} Rf8 {[%emt 0:00:14]} 35. Re2 {[%emt 0:00:32]} Rd8 {[%emt 0:00:08]} 1/2-1/2

[Event "9th Amsterdam Science Park A 2019"]
[Site "Amsterdam"]
[Date "2019.07.07"]
[Round "2.4"]
[White "Arnaudov, G. Petar"]
[Black "Luberti, W.."]
[Result "1-0"]
[ECO "A41"]
[WhiteElo "2478"]
[BlackElo "2201"]
[Annotator "ChessBase"]
[PlyCount "45"]
[EventDate "2019.07.06"]
[EventType "swiss"]
[EventCountry "NED"]
[SourceTitle "playchess.com"]
[Source "ChessBase"]
[SourceQuality "1"]
[TimeControl "40/5400+30:1800+30"]

1. d4 {[%emt 0:01:09]} g6 {[%emt 0:00:00]} 2. c4 {[%emt 0:00:04]} Bg7 {[%emt 0:00:00]} 3. Nc3 {[%emt 0:00:09]} d6 {[%emt 0:01:13]} 4. Nf3 {[%emt 0:00:05]} Nf6 {[%emt 0:02:35]} 5. e4 {[%emt 0:00:05]} O-O {[%emt 0:00:15]} 6. h3 {[%emt 0:00:04]} e5 {[%emt 0:03:17]} 7. d5 {[%emt 0:00:06]} Nh5 {[%emt 0:00:24]} 8. g3 {[%emt 0:00:08]} Bd7 {[%emt 0:02:38]} 9. Be2 {[%emt 0:00:43]} a5 {[%emt 0:05:07]} 10. Nh2 {[%emt 0:03:33]} Be8 {[%emt 0:05:01]} 11. Be3 {[%emt 0:00:34]} Na6 {[%emt 0:01:14]} 12. Bxh5 {[%emt 0:02:04]} gxh5 {[%emt 0:00:30]} 13. g4 {[%emt 0:00:04]} Kh8 {[%emt 0:01:29]} 14. Qd2 {[%emt 0:03:28]} hxg4 {[%emt 0:04:53]} 15. hxg4 {[%emt 0:01:57]} f6 {[%emt 0:00:12]} 16. Nf3 {[%emt 0:00:40]} Qd7 {[%emt 0:02:03]} 17. O-O-O {[%emt 0:00:56]} Nc5 {[%emt 0:05:48]} 18. Nh4 {[%emt 0:04:11]} Nxe4 {[%emt 0:28:04]} 19. Nxe4 {[%emt 0:01:22]} Qxg4 {[%emt 0:00:06]} 20. Qc2 {[%emt 0:02:46]} f5 {[%emt 0:01:27]} 21. f3 {[%emt 0:00:19]} Qh5 {[%emt 0:00:05]} 22. Ng3 {[%emt 0:00:25]} Bd7 {[%emt 0:04:05]} 23. Nxh5 1-0